[Event "NED-ch U20 Girls 2019"]
[Site "Assen"]
[Date "2019.05.04"]
[Round "7.1"]
[White "Waardenburg, Feline"]
[Black "Van de Poel, Wyona"]
[Result "1-0"]
[ECO "D36"]
[WhiteElo "1742"]
[BlackElo "1584"]
[Annotator "NA RC"]
[PlyCount "85"]
[EventDate "2019.04.28"]
[EventType "swiss"]
[EventCountry "NED"]
[SourceTitle "playchess.com"]
[Source "ChessBase"]
[SourceQuality "1"]
[TimeControl "40/5400+30:1800+30"]

1. d4 {[%emt 0:00:00]} d5 {[%emt 0:00:00]} 2. c4 {[%emt 0:00:00]} e6 {[%emt 0:00:00]} 3. Nc3 {[%emt 0:00:00]} Nf6 {[%emt 0:00:19]} 4. cxd5 {[%emt 0:00:30]} exd5 {[%emt 0:00:45]} 5. Bg5 {[%emt 0:00:34]} Be7 {[%emt 0:00:21]} 6. e3 {[%emt 0:02:12]} c6 {[%emt 0:01:18]} 7. Bd3 {[%emt 0:00:51]} Nbd7 {[%emt 0:00:43]} 8. Qc2 {[%emt 0:01:12]} Nf8 {[%emt 0:00:20]} 9. Nf3 {[%emt 0:02:56]} Ne6 {[%emt 0:00:36]} 10. Bh4 {[%emt 0:01:12]} g6 {[%emt 0:00:48]} 11. Rb1 {[%emt 0:02:24]} O-O {[%emt 0:03:58]} 12. O-O {[%emt 0:04:35]} Ng7 {[%emt 0:02:16]} 13. b4 {[%emt 0:01:50]} a6 {[%emt 0:00:24]} 14. a4 {[%emt 0:01:00]} Bf5 {[%emt 0:01:25]} 15. Bxf5 {[%emt 0:03:29]} Nxf5 {[%emt 0:00:08]} 16. Bxf6 {[%emt 0:01:32]} Bxf6 {[%emt 0:00:07]} 17. b5 {[%emt 0:00:35]} axb5 {[%emt 0:00:11]} 18. axb5 {[%emt 0:00:27]} Qa5 {[%emt 0:02:24]} 19. Rfc1 {[%emt 0:12:42]} Rfc8 {[%emt 0:02:41]} 20. Qb3 {[%emt 0:09:45]} Nd6 {[%emt 0:05:15]} 21. g3 {[%emt 0:04:42]} Kg7 {[%emt 0:13:39]} 22. Rb2 {[%emt 0:09:53]} Nc4 {[%emt 0:05:36]} 23. Rbc2 {[%emt 0:01:07]} Qd8 {[%emt 0:06:21]} 24. Na4 {[%emt 0:07:38]} Be7 {[%emt 0:06:00]} 25. bxc6 {[%emt 0:12:18]} bxc6 {[%emt 0:00:40]} 26. Ra2 {[%emt 0:01:59]} Rcb8 {[%emt 0:06:04]} 27. Qc2 {[%emt 0:00:39]} Ba3 {[%emt 0:03:59]} 28. Rca1 {[%emt 0:02:08]} Be7 {[%emt 0:05:50]} 29. Nc5 {[%emt 0:03:38]} Rxa2 {[%emt 0:03:13]} 30. Rxa2 {[%emt 0:00:12]} Bxc5 {[%emt 0:01:09]} 31. dxc5 {[%emt 0:00:09]} Rb5 {[%emt 0:01:49]} 32. Ra6 {[%emt 0:03:26]} Rxc5 {[%emt 0:04:57]} 33. Ne5 {[%emt 0:02:49]} Qd6 {[%emt 0:03:37]} 34. Nd3 {[%emt 0:00:47]} Rb5 {[%emt 0:02:18]} 35. Qc3+ {[%emt 0:00:31]} Kf8 {[%emt 0:02:54]} 36. Qh8+ {[%emt 0:00:46]} Ke7 {[%emt 0:00:49]} 37. Ra7+ {[%emt 0:00:22]} Ke6 {[%emt 0:02:01]} 38. Nf4+ {[%emt 0:00:13]} Kf5 {[%emt 0:00:52]} 39. Rxf7+ {[%emt 0:00:17]} Kg5 {[%emt 0:04:04]} 40. Qxh7 {[%emt 0:01:56]} Kg4 {[%emt 0:08:17]} 41. Qh4+ {[%emt 0:33:54]} Kf3 {[%emt 0:30:24]} 42. Nxd5+ {[%emt 0:02:21]} Ke2 {[%emt 0:00:43]} 43. Nc3+ {[%emt 0:00:15]} 1-0

[Event "NED-ch U20 Girls 2019"]
[Site "Assen"]
[Date "2019.05.04"]
[Round "7.2"]
[White "Duson, Robin"]
[Black "Basa, Manasvita"]
[Result "1-0"]
[ECO "D35"]
[WhiteElo "1981"]
[BlackElo "1532"]
[Annotator "NA RC"]
[PlyCount "121"]
[EventDate "2019.04.28"]
[EventType "swiss"]
[EventCountry "NED"]
[SourceTitle "playchess.com"]
[Source "ChessBase"]
[SourceQuality "1"]
[TimeControl "40/5400+30:1800+30"]

1. d4 {[%emt 0:00:00]} d5 {[%emt 0:00:00]} 2. c4 {[%emt 0:00:00]} e6 {[%emt 0:00:00]} 3. Nc3 {[%emt 0:00:00]} Be7 {[%emt 0:00:00]} 4. Bf4 {[%emt 0:00:08]} Nf6 {[%emt 0:00:00]} 5. e3 {[%emt 0:00:27]} O-O {[%emt 0:00:59]} 6. a3 {[%emt 0:00:22] D35: Queen's Gambit Declined: Exchange Variation} a6 {[%emt 0:01:43]} 7. Rc1 {[%emt 0:11:48]} Nbd7 {[%emt 0:18:02]} 8. Nf3 {[%emt 0:08:07]} Nh5 $146 {[%emt 0:05:18]} ({Predecessor:} 8... c5 9. h3 cxd4 10. exd4 dxc4 11. Bxc4 {1-0 (93) Jankovic,A (2579)-Mrkonjic,N (2353) Sibenik 2016}) 9. cxd5 {[%emt 0:06:00]} Nxf4 {[%emt 0:00:44]} 10. exf4 {[%emt 0:00:12]} Nb6 {[%emt 0:00:39]} 11. dxe6 {[%emt 0:02:29]} Bxe6 {[%emt 0:03:25]} 12. Bd3 {[%emt 0:06:21]} f5 {[%emt 0:01:34]} (12... Qd6 $142) 13. O-O {[%emt 0:03:14]} Bf6 {[%emt 0:03:38]} 14. Ne5 {[%emt 0:08:58]} Qd6 {[%emt 0:05:32]} 15. Ne2 {[%emt 0:03:57]} Rad8 {[%emt 0:00:45]} 16. Qc2 {[%emt 0:01:02]} Nd5 {[%emt 0:09:35]} 17. g3 {[%emt 0:01:19]} g6 {[%emt 0:00:17]} 18. Rfd1 {[%emt 0:04:26]} Kg7 {[%emt 0:09:28]} 19. b4 {[%emt 0:02:01]} c6 {[%emt 0:01:28]} 20. Qc5 {[%emt 0:06:22]} Be7 {[%emt 0:05:24]} 21. Qxd6 {[%emt 0:00:51]} Rxd6 {[%emt 0:00:19]} 22. Bc4 {[%emt 0:04:18]} g5 {[%emt 0:08:09]} 23. Bxd5 {[%emt 0:03:35]} Bxd5 {[%emt 0:00:10]} 24. fxg5 {[%emt 0:00:32]} Bxg5 {[%emt 0:00:27]} 25. f4 {[%emt 0:00:12]} Bd8 {[%emt 0:01:37]} 26. Nc3 {[%emt 0:04:14]} Bg8 {[%emt 0:01:58]} 27. Kf2 {[%emt 0:04:37]} Bb6 {[%emt 0:00:27]} 28. Ke3 {[%emt 0:01:00]} Rfd8 {[%emt 0:01:03]} 29. Ne2 {[%emt 0:01:09]} Ra8 {[%emt 0:11:53]} 30. Rb1 {[%emt 0:04:26]} Rad8 {[%emt 0:02:18]} 31. a4 {[%emt 0:01:57]} Kf6 {[%emt 0:05:00]} 32. h3 {[%emt 0:00:39]} h5 {[%emt 0:00:55]} 33. Rb2 {[%emt 0:03:03]} Kg7 {[%emt 0:02:12]} 34. a5 {[%emt 0:01:33]} Ba7 {[%emt 0:00:10]} 35. Rd3 {[%emt 0:02:13]} Kf6 {[%emt 0:00:24]} 36. Rbd2 {[%emt 0:00:45]} Kg7 {[%emt 0:00:42]} 37. Rd1 {[%emt 0:01:48]} Kf6 {[%emt 0:00:59]} 38. g4 {[%emt 0:00:43]} fxg4 {[%emt 0:00:15]} 39. hxg4 {[%emt 0:00:07]} hxg4 {[%emt 0:00:09]} 40. Nxg4+ {[%emt 0:00:29]} Kf5 {[%emt 0:00:38] [#]} 41. Ne5 $1 {[%emt 0:31:53]} Rf8 $2 {[%emt 0:31:00]} (41... Bd5) 42. Ng3+ {[%emt 0:01:33]} Kf6 {[%emt 0:00:24]} 43. Ne4+ {[%emt 0:00:09]} Ke6 {[%emt 0:00:32]} 44. Nxd6 {[%emt 0:00:22]} Kxd6 {[%emt 0:00:06]} 45. Rg1 {[%emt 0:01:11]} Bh7 {[%emt 0:00:48]} 46. Rd2 {[%emt 0:00:20]} Bf5 {[%emt 0:01:09]} 47. Rg7 {[%emt 0:00:46]} Bc8 {[%emt 0:00:14]} 48. Rg5 $18 {[%emt 0:00:00]} Bf5 {[%emt 0:00:00]} 49. Rh2 {[%emt 0:00:00]} Kd5 {[%emt 0:00:00]} 50. Rhh5 {[%emt 0:00:00]} Bxd4+ {[%emt 0:00:00]} 51. Kd2 {[%emt 0:00:00]} Ke4 {[%emt 0:00:00]} 52. Nd3 {[%emt 0:00:00]} Be3+ {[%emt 0:00:00]} 53. Ke2 {[%emt 0:00:00]} Bxf4 {[%emt 0:00:00]} 54. Rh4 {[%emt 0:00:00]} Be6 {[%emt 0:00:00]} 55. Re5+ {[%emt 0:00:00]} Kd4 {[%emt 0:00:00]} 56. Rxe6 {[%emt 0:00:00]} Kd5 {[%emt 0:00:00]} 57. Rxf4 {[%emt 0:00:00]} Rxf4 {[%emt 0:00:00]} 58. Nxf4+ {[%emt 0:00:00]} Kc4 {[%emt 0:00:00]} 59. Nd3 {[%emt 0:00:00]} Kb5 {[%emt 0:00:00]} 60. Re7 {[%emt 0:00:00]} b6 {[%emt 0:00:00]} 61. Rb7 {[%emt 0:00:00]} 1-0

[Event "NED-ch U20 Girls 2019"]
[Site "Assen"]
[Date "2019.05.04"]
[Round "7.3"]
[White "Waardenburg, Marlinde"]
[Black "Warnaar, Alisha"]
[Result "0-1"]
[ECO "E92"]
[WhiteElo "1706"]
[BlackElo "1910"]
[Annotator "NA RC"]
[PlyCount "144"]
[EventDate "2019.04.28"]
[EventType "swiss"]
[EventCountry "NED"]
[SourceTitle "playchess.com"]
[Source "ChessBase"]
[SourceQuality "1"]
[TimeControl "40/5400+30:1800+30"]

1. d4 {[%emt 0:00:00]} Nf6 {[%emt 0:00:00]} 2. c4 {[%emt 0:00:00]} g6 {[%emt 0:00:00]} 3. Nc3 {[%emt 0:00:00]} Bg7 {[%emt 0:00:01]} 4. e4 {[%emt 0:00:20]} d6 {[%emt 0:00:06]} 5. Nf3 {[%emt 0:00:23]} O-O {[%emt 0:00:51]} 6. Be2 {[%emt 0:00:19]} e5 {[%emt 0:00:08]} 7. dxe5 {[%emt 0:01:04]} dxe5 {[%emt 0:02:13]} 8. Qxd8 {[%emt 0:00:35]} Rxd8 {[%emt 0:00:03]} 9. Bg5 {[%emt 0:00:18]} c6 {[%emt 0:02:34]} 10. Nxe5 {[%emt 0:04:09]} Re8 {[%emt 0:00:55]} 11. O-O-O {[%emt 0:01:07]} Na6 {[%emt 0:02:10]} 12. Nf3 {[%emt 0:03:03]} Nc5 {[%emt 0:04:25]} 13. Nd2 {[%emt 0:08:01] E92: King's Indian: Classical: 6 Be2 e5: 7 dxe5, 7 Be3 and Petrosian System without 7...Nbd7} Nfd7 {[%emt 0:11:46]} (13... Be6 14. f3 b6 15. Nb3 Nfd7 16. Nd4 Ne5 17. Nxe6 Nxe6 18. Be3 c5 19. Nd5 Nc6 20. Bd3 Ncd4 {1-0 (56) Iljiushenok,I (2528)-Murzin,V (2282) Kolomna 2018}) 14. f3 {[%emt 0:06:10]} f5 {[%emt 0:00:54]} 15. Rhe1 {[%emt 0:19:02]} Bxc3 {[%emt 0:10:21]} 16. bxc3 {[%emt 0:00:13]} fxe4 {[%emt 0:03:17]} 17. Bf1 $146 {[%emt 0:17:05]} ({Predecessor:} 17. Nxe4 Nxe4 18. fxe4 Nc5 19. Bf3 Be6 20. Rd4 Na4 {1-0 (52) Gagarin,V (2385)-Khan,E (2240) Gyor 1990}) 17... Re5 {[%emt 0:09:25]} (17... Nb6 $16) 18. f4 {[%emt 0:13:29]} Re8 {[%emt 0:10:58]} 19. Nb3 {[%emt 0:02:13]} a5 {[%emt 0:02:27]} 20. Rd4 {[%emt 0:07:52]} Nxb3+ {[%emt 0:04:41]} 21. axb3 {[%emt 0:00:13]} Nc5 {[%emt 0:00:05]} 22. Kb2 {[%emt 0:01:38]} Bf5 {[%emt 0:00:51]} 23. Rd2 {[%emt 0:08:54]} a4 {[%emt 0:09:57]} 24. b4 {[%emt 0:01:19]} Ne6 {[%emt 0:00:39]} 25. Bh6 {[%emt 0:01:04]} Nd8 {[%emt 0:08:06]} 26. Bg5 {[%emt 0:00:28]} (26. Re3 $14) 26... Nf7 {[%emt 0:00:45]} 27. Bh4 {[%emt 0:00:20]} e3 {[%emt 0:01:41]} 28. Rdd1 {[%emt 0:01:29]} Bg4 {[%emt 0:03:52]} 29. Be2 {[%emt 0:00:13]} Nh6 {[%emt 0:00:53]} 30. Bg5 {[%emt 0:01:48]} Bxe2 {[%emt 0:00:38]} 31. Rxe2 {[%emt 0:00:04]} Nf7 {[%emt 0:00:37]} 32. Bh4 {[%emt 0:00:14]} ({Better is} 32. c5 $1 $14) 32... Re4 {[%emt 0:00:21]} 33. Rd3 {[%emt 0:02:02]} Rae8 {[%emt 0:01:32]} 34. Ka3 {[%emt 0:00:49]} Rxf4 {[%emt 0:01:33]} 35. Bg3 {[%emt 0:00:19]} Rxc4 {[%emt 0:02:30]} 36. Rdxe3 {[%emt 0:00:32]} Rxc3+ {[%emt 0:00:48]} 37. Rxc3 {[%emt 0:00:30]} Rxe2 {[%emt 0:00:04]} 38. Kxa4 {[%emt 0:00:40]} Rxg2 {[%emt 0:00:58]} 39. Re3 {[%emt 0:00:43]} Rc2 {[%emt 0:06:25]} 40. Re8+ {[%emt 0:00:30]} Kg7 {[%emt 0:00:00]} 41. Kb3 {[%emt 0:02:29]} Rc1 {[%emt 0:00:00]} 42. Kb2 {[%emt 0:02:09]} (42. Re7 $17 {keeps fighting.}) 42... Rc4 {[%emt 0:00:00]} 43. Kb3 {[%emt 0:00:11] [#]} b5 $1 {[%emt 0:00:00]} 44. Re7 {[%emt 0:03:59]} Kf6 {[%emt 0:00:00]} 45. Rd7 $19 {[%emt 0:01:31]} g5 {[%emt 0:00:00]} 46. Rd2 {[%emt 0:01:59]} h5 {[%emt 0:01:55]} 47. Bc7 {[%emt 0:06:10]} Ne5 {[%emt 0:05:04]} 48. Rf2+ {[%emt 0:01:28]} Rf4 {[%emt 0:00:08]} 49. Re2 {[%emt 0:01:12]} Rf3+ {[%emt 0:00:53]} 50. Kc2 {[%emt 0:03:04]} Ng4 {[%emt 0:02:46]} 51. Kd2 {[%emt 0:02:50]} Rb3 {[%emt 0:04:40]} 52. Bd6 {[%emt 0:02:14]} Rb2+ {[%emt 0:00:11]} 53. Ke1 {[%emt 0:01:57]} Rxe2+ {[%emt 0:00:32]} 54. Kxe2 {[%emt 0:00:04]} Ke6 {[%emt 0:00:29]} 55. Bb8 {[%emt 0:00:56]} Kd5 {[%emt 0:00:38]} 56. h3 {[%emt 0:02:56]} Nf6 {[%emt 0:00:35]} 57. Ba7 {[%emt 0:00:46]} Kc4 {[%emt 0:00:41]} 58. Bc5 {[%emt 0:00:33]} Nd5 {[%emt 0:01:29]} 59. Kf3 {[%emt 0:00:20]} g4+ {[%emt 0:00:27]} 60. hxg4 {[%emt 0:00:20]} hxg4+ {[%emt 0:00:04]} 61. Kxg4 {[%emt 0:00:15]} Nxb4 {[%emt 0:00:03]} 62. Be7 {[%emt 0:02:02]} Nd3 {[%emt 0:00:21]} 63. Kf3 {[%emt 0:00:44]} b4 {[%emt 0:00:14]} 64. Ke2 {[%emt 0:00:33]} Kc3 {[%emt 0:00:17]} 65. Kd1 {[%emt 0:00:59]} c5 {[%emt 0:00:51]} 66. Bf6+ {[%emt 0:00:19]} Kb3 {[%emt 0:00:06]} 67. Kd2 {[%emt 0:00:39]} c4 {[%emt 0:00:10]} 68. Bg7 {[%emt 0:01:07]} Nb2 {[%emt 0:00:38]} 69. Kc1 {[%emt 0:00:41]} c3 {[%emt 0:00:05]} 70. Bh6 {[%emt 0:00:27]} Ka2 {[%emt 0:00:18]} 71. Kc2 {[%emt 0:00:30]} Na4 {[%emt 0:00:10]} 72. Bg5 {[%emt 0:00:42]} b3+ {[%emt 0:00:08]} 0-1

[Event "NED-ch U20 Girls 2019"]
[Site "Assen"]
[Date "2019.05.04"]
[Round "7.4"]
[White "Monteny, Pascalle"]
[Black "Koning, Femke"]
[Result "1-0"]
[ECO "C56"]
[WhiteElo "1433"]
[BlackElo "1566"]
[Annotator "NA RC"]
[PlyCount "107"]
[EventDate "2019.04.28"]
[EventType "swiss"]
[EventCountry "NED"]
[SourceTitle "playchess.com"]
[Source "ChessBase"]
[SourceQuality "1"]
[TimeControl "40/5400+30:1800+30"]

1. e4 {[%emt 0:00:00]} e5 {[%emt 0:00:00]} 2. Nf3 {[%emt 0:00:00]} Nc6 {[%emt 0:00:00]} 3. d4 {[%emt 0:00:00]} exd4 {[%emt 0:00:00]} 4. Bc4 {[%emt 0:00:00]} Nf6 {[%emt 0:00:09]} 5. e5 {[%emt 0:00:09]} d5 {[%emt 0:00:10]} 6. Bb5 {[%emt 0:00:13]} Ne4 {[%emt 0:00:16]} 7. Nxd4 {[%emt 0:00:37]} Bd7 {[%emt 0:00:36]} 8. Bxc6 {[%emt 0:00:42]} bxc6 {[%emt 0:00:07]} 9. O-O {[%emt 0:00:42]} Bc5 {[%emt 0:00:52]} 10. f3 {[%emt 0:01:51]} Ng5 {[%emt 0:02:11]} 11. f4 {[%emt 0:03:38]} Ne4 {[%emt 0:01:48]} 12. Be3 {[%emt 0:00:35]} Bb6 {[%emt 0:01:02]} 13. c3 {[%emt 0:03:49]} O-O {[%emt 0:01:04]} 14. Nd2 {[%emt 0:04:23]} c5 {[%emt 0:02:26]} 15. N4b3 {[%emt 0:06:04]} c4 {[%emt 0:03:17]} 16. Nd4 {[%emt 0:02:40]} c5 {[%emt 0:01:25]} 17. Ne2 {[%emt 0:15:37]} Bf5 {[%emt 0:14:52]} 18. Nf3 {[%emt 0:15:26]} Qd7 {[%emt 0:09:34]} 19. Qe1 {[%emt 0:07:32]} Rad8 {[%emt 0:02:07]} 20. Qh4 {[%emt 0:06:41]} h6 {[%emt 0:01:26]} 21. h3 {[%emt 0:04:43]} Bh7 {[%emt 0:15:17]} 22. g4 {[%emt 0:09:56]} f5 {[%emt 0:08:41]} 23. Kh2 {[%emt 0:09:34]} Rde8 {[%emt 0:03:37]} 24. g5 {[%emt 0:01:28]} Bd8 {[%emt 0:00:41]} 25. Rg1 {[%emt 0:01:59]} Kh8 {[%emt 0:01:13]} 26. Ng3 {[%emt 0:03:40]} hxg5 {[%emt 0:04:18]} 27. Nxg5 {[%emt 0:00:22]} Nxg5 {[%emt 0:00:34]} 28. fxg5 {[%emt 0:00:18]} Rxe5 {[%emt 0:05:40]} 29. Bxc5 {[%emt 0:00:39]} Rfe8 {[%emt 0:04:38]} 30. Bd4 {[%emt 0:00:22]} R5e7 {[%emt 0:00:15]} 31. Kh1 {[%emt 0:00:54]} Kg8 {[%emt 0:00:41]} 32. Nh5 {[%emt 0:00:44]} Re4 {[%emt 0:05:13]} 33. Qf2 {[%emt 0:00:33]} g6 {[%emt 0:00:58]} 34. Nf6+ {[%emt 0:00:23]} Bxf6 {[%emt 0:00:01]} 35. gxf6 {[%emt 0:00:31]} Kf7 {[%emt 0:00:18]} 36. Qf3 {[%emt 0:00:33]} Qc8 {[%emt 0:06:21]} 37. Bxa7 {[%emt 0:00:36]} Kxf6 {[%emt 0:00:50]} 38. Bd4+ {[%emt 0:00:07]} Kf7 {[%emt 0:06:22]} 39. a4 {[%emt 0:00:48]} Qb8 {[%emt 0:00:00]} 40. Rg2 {[%emt 0:00:33]} Qa8 {[%emt 0:00:00]} 41. Rgg1 {[%emt 0:06:41]} Rb8 {[%emt 0:06:32]} 42. Rg2 {[%emt 0:08:36]} Rbe8 {[%emt 0:00:07]} 43. Qg3 {[%emt 0:07:13]} Qd8 {[%emt 0:03:23]} 44. a5 {[%emt 0:02:02]} Qh4 {[%emt 0:01:26]} 45. Qxh4 {[%emt 0:01:50]} Rxh4 {[%emt 0:00:01]} 46. Kh2 {[%emt 0:01:19]} Ra8 {[%emt 0:03:34]} 47. a6 {[%emt 0:00:20]} Re4 {[%emt 0:00:50]} 48. a7 {[%emt 0:02:00]} f4 {[%emt 0:00:28]} 49. Ra5 {[%emt 0:01:46]} Ke6 {[%emt 0:00:51]} 50. Rb5 {[%emt 0:00:38]} Rxd4 {[%emt 0:02:56]} 51. cxd4 {[%emt 0:00:22]} Rxa7 {[%emt 0:00:01]} 52. Re2+ {[%emt 0:01:26]} Kd6 {[%emt 0:00:38]} 53. Rb6+ {[%emt 0:00:41]} Kd7 {[%emt 0:02:07]} 54. Rf6 {[%emt 0:00:19]} 1-0